bitfinex/quotes_ETHUSD_20251215
["timestamp","ask_amount","ask_price","bid_price","bid_amount"]
[1765785210684,0.01478098,3126.6,3126.5,0.5838]
[1765785211066,3.68094341,3126.6,3126.5,0.001]
[1765785211384,4.13204341,3126.6,3126.5,0.001]
[1765785211884,3.68094341,3126.6,3126.5,0.001]
[1765785212088,4.13204341,3126.6,3126.5,0.001]
[1765785212568,3.68094341,3126.6,3126.5,0.001]
[1765785212770,0.48258098,3126.6,3126.5,0.001]
[1765785213170,0.51978098,3126.6,3126.5,0.001]
[1765785213669,0.51978098,3126.6,3126.5,0.2924]
[1765785214175,3.21314341,3126.6,3126.5,0.2924]
[1765785214377,3.71814341,3126.6,3126.5,0.2924]
[1765785215276,3.71814341,3126.6,3126.5,0.001]
[1765785216181,0.51978098,3126.6,3126.5,0.001]
[1765785217370,3.71814341,3126.6,3126.5,0.001]
[1765785217690,4.18594341,3126.6,3126.5,0.001]
[1765785217891,4.63704341,3126.6,3126.5,0.001]
[1765785218044,5.42204222,3126.6,3126.5,0.001]
[1765785218249,0.01478098,3126.6,3126.5,0.2924]
[1765785219247,0.002,3126.6,3126.5,0.5838]
[1765785220580,0.002,3126.6,3126.5,3.78226473]
[1765785222588,0.002,3126.6,3126.5,4.36274002]
[1765785223596,0.002,3126.6,3126.5,13.2024702]
[1765785223751,0.002,3126.6,3126.5,10.74267416]
[1765785241920,0.002,3126.6,3126.5,15.56804325]
[1765785246021,0.002,3126.6,3126.5,6.72831307]
[1765785246220,0.002,3126.6,3126.5,11.14817816]
[1765785246790,0.002,3126.6,3126.5,15.56804325]
[1765785248227,0.002,3126.6,3126.5,11.14817816]
[1765785250924,0.002,3126.6,3126.5,15.56804325]
[1765785254138,0.002,3127.1,3127.0,0.98597929]
[1765785254340,0.002,3127.1,3127.0,1.30935882]
[1765785254641,0.002,3127.1,3127.0,6.20124438]
[1765785254842,0.002,3127.1,3127.0,6.38374438]
[1765785255138,0.002,3127.1,3127.0,6.67514438]
[1765785255342,0.002,3127.1,3127.0,7.34265882]
[1765785256046,0.002,3127.1,3127.0,10.54061212]
[1765785256944,0.4993,3127.1,3127.0,4.36946774]
[1765785257239,0.4993,3127.1,3127.0,4.94994303]
[1765785257835,0.002,3127.1,3127.0,5.24134303]
[1765785261157,0.4993,3127.1,3127.0,4.94994303]
[1765785261817,0.4993,3127.1,3127.0,5.44924303]
[1765785263454,0.9495,3127.1,3127.0,5.44924303]
[1765785264018,0.4993,3127.1,3127.0,5.44924303]
[1765785264221,0.9495,3127.1,3127.0,4.78172859]
[1765785269849,0.01278098,3127.6,3127.0,8.45078189]
[1765785270047,0.01478098,3127.8,3127.2,4.41986509]
[1765785270453,0.4648,3127.3,3127.2,4.41986509]
[1765785270623,0.4648,3127.3,3127.1,0.1825]
[1765785270817,0.4648,3127.2,3127.0,1.08447529]
[1765785271020,0.4648,3127.1,3127.0,1.08447529]
[1765785271450,0.4648,3127.1,3127.0,4.28242423]
[1765785272533,0.4648,3127.1,3127.0,5.568593]
[1765785273449,0.01278098,3127.6,3127.0,9.2376463]
[1765785273654,0.4698,3127.5,3127.1,4.41986509]
[1765785274830,3.1972531,3127.7,3127.1,7.61770386]
[1765785275036,0.4648,3127.2,3127.1,7.61770386]
[1765785277463,0.01478098,3127.8,3127.1,8.55940386]
[1765785277631,0.4698,3127.7,3127.1,7.61770386]
[1765785277832,0.01278098,3127.6,3127.1,7.61770386]
[1765785278360,0.4648,3127.2,3127.1,8.19817915]
[1765785278568,0.4648,3127.2,3127.1,9.16442487]
[1765785280309,0.01278098,3127.6,3127.1,9.63552487]
[1765785280433,0.4698,3127.5,3127.1,10.10612487]
[1765785280764,0.4698,3127.5,3127.1,9.63552487]
[1765785280955,0.4698,3127.5,3127.1,12.83337591]
[1765785281161,0.4698,3127.5,3127.2,1.4297654]
[1765785282169,0.4698,3127.5,3127.2,4.62746357]
[1765785283326,0.4698,3127.5,3127.1,1.05027529]
[1765785283532,0.4698,3127.5,3127.1,0.58047529]
[1765785284332,0.01278098,3127.4,3127.1,0.58047529]
[1765785284985,0.4648,3127.2,3127.1,0.58047529]
[1765785285153,0.4648,3127.2,3127.1,3.77832633]
[1765785285469,0.4648,3127.2,3127.1,4.57344305]
[1765785292935,0.4668,3127.2,3127.1,4.57344305]
[1765785293652,0.4668,3127.2,3127.1,1.37559201]
[1765785293856,0.4668,3127.2,3127.0,0.001]
[1765785293857,0.5529,3127.2,3127.0,0.001]
[1765785294037,0.48348098,3127.1,3127.0,0.001]
[1765785295030,3.68133202,3127.1,3127.0,0.001]
[1765785295239,4.41984543,3127.1,3127.0,0.001]
[1765785300573,0.47628098,3127.1,3127.0,0.001]
[1765785304178,0.01368098,3127.1,3127.0,0.001]
[1765785304786,0.47628098,3127.1,3127.0,0.001]
[1765785305367,0.01368098,3127.1,3127.0,0.001]
[1765785307553,0.47628098,3127.1,3127.0,0.001]
[1765785308381,0.01368098,3127.1,3127.0,0.001]
[1765785310600,0.01278098,3127.1,3127.0,0.4655]
[1765785310905,0.01278098,3127.1,3127.0,0.87892579]
[1765785311812,0.002,3127.2,3127.0,0.87892579]
[1765785313206,0.002,3127.2,3127.0,0.41442579]
[1765785313412,0.4646,3127.2,3127.0,0.001]
[1765785314449,0.002,3127.2,3127.0,0.001]
[1765785314924,0.002,3127.2,3127.1,1.1333]
[1765785315113,0.002,3127.2,3127.1,1.71377529]
[1765785315315,0.002,3127.2,3127.1,6.34315505]
[1765785315520,0.002,3127.2,3127.1,6.2151233]
[1765785316039,0.002,3127.2,3127.1,5.5463233]
[1765785316738,0.002,3127.2,3127.1,6.0159233]
[1765785317629,0.002,3127.2,3127.1,2.81807226]
[1765785318311,0.002,3127.2,3127.1,6.0159233]
[1765785322015,0.002,3127.2,3127.1,6.14395505]
[1765785324222,0.002,3127.2,3127.1,6.17593356]
[1765785324439,0.002,3127.2,3127.1,6.58143756]
[1765785324639,0.002,3127.2,3127.1,10.96875326]
[1765785325146,0.002,3127.2,3127.1,6.54945905]
[1765785325368,0.002,3127.2,3127.1,29.31867026]
[1765785325540,0.002,3127.2,3127.1,29.37565626]
[1765785325844,0.002,3127.6,3127.5,9.82456771]
[1765785326044,0.002,3127.6,3127.5,14.97296652]
[1765785326245,0.002,3127.6,3127.5,15.44256652]
[1765785326447,0.002,3127.8,3127.6,0.98597929]
[1765785326646,0.002,3127.8,3127.7,0.870004]
[1765785326847,0.002,3127.8,3127.7,1.339604]
[1765785327156,0.002,3127.8,3127.7,3.80007542]
[1765785328021,0.002,3127.8,3127.7,3.83204779]
[1765785328320,0.002,3127.8,3127.7,7.02928537]
[1765785328532,0.002,3127.8,3127.7,6.997313]
[1765785331720,0.002,3127.8,3127.7,7.12528986]
[1765785339430,0.002,3127.8,3127.7,6.65568986]
[1765785339637,0.002,3127.8,3127.7,7.12548986]
[1765785344971,0.002,3127.8,3127.7,6.65568986]
[1765785345168,0.002,3127.8,3127.7,7.12548986]
[1765785347336,0.002,3127.8,3127.7,11.54061985]
[1765785360178,0.002,3127.9,3127.8,0.98597929]
[1765785360397,0.002,3127.9,3127.8,2.45976585]
[1765785360557,0.002,3127.9,3127.8,2.96376585]
[1765785360758,0.002,3127.9,3127.8,3.57994271]
[1765785362082,0.002,3127.9,3127.8,6.77707807]
[1765785369004,0.002,3127.9,3127.8,7.24827807]
[1765785369299,1.0,3525.0,3127.8,7.24827807]
[1765785369489,0.01238098,3129.1,3128.5,0.58047529]
[1765785369880,0.0257,3128.6,3128.5,0.58047529]
[1765785371402,0.0514,3128.6,3128.5,3.77689529]
[1765785373481,0.0534,3128.6,3128.5,3.77689529]
[1765785377805,0.002,3128.6,3128.5,4.76825949]
[1765785377982,0.002,3128.6,3128.5,6.87171197]
[1765785378187,0.002,3128.6,3128.5,6.52847245]
[1765785378512,0.0277,3128.6,3128.5,6.04027245]
[1765785380308,0.002,3128.6,3128.5,6.04027245]
[1765785380487,0.002,3128.6,3128.5,6.52847245]
[1765785380803,0.0277,3128.6,3128.5,5.63476845]
[1765785380987,0.0277,3128.6,3128.5,8.82398576]
[1765785381398,0.002,3128.6,3128.5,8.82398576]
[1765785382206,0.002,3129.2,3128.6,0.405504]
[1765785382373,0.002,3129.2,3129.1,5.49443399]
[1765785382573,0.002,3129.2,3129.1,7.05010928]
[1765785382803,0.002,3129.2,3129.1,8.37843321]
[1765785383104,0.0277,3129.2,3129.1,7.23343321]
[1765785383676,0.0277,3129.2,3129.1,6.82792921]
[1765785383871,0.0277,3129.2,3129.1,5.68140528]
[1765785384402,0.0277,3129.2,3129.1,8.87721238]
[1765785385175,0.002,3129.2,3129.1,14.18604637]
[1765785385607,0.002,3129.2,3129.1,14.65724637]
[1765785385781,0.002,3129.2,3129.1,16.4425632]
[1765785387738,0.002,3129.2,3129.1,19.8115632]
[1765785388018,0.002,3129.9,3129.2,0.58047529]
[1765785388220,0.002,3129.9,3129.8,8.59620161]
[1765785388401,0.0277,3129.9,3129.8,8.69569761]
[1765785388578,0.0534,3129.9,3129.8,9.88478818]
[1765785388907,0.0534,3129.9,3129.8,10.01270488]
[1765785389207,0.0277,3129.9,3129.8,10.01270488]
[1765785389410,0.0534,3129.9,3129.8,10.01270488]
[1765785390110,0.0277,3129.9,3129.8,10.01270488]
[1765785390607,0.002,3129.9,3129.8,10.90860888]
[1765785390810,0.002,3129.9,3129.8,16.21501443]
[1765785390975,0.002,3129.9,3129.8,15.80353887]
[1765785393022,0.002,3129.9,3129.8,11.38840888]
[1765785393321,0.002,3129.9,3129.8,15.80353887]
[1765785393983,0.002,3130.5,3129.8,15.80353887]
[1765785393984,1e-08,3130.5,3130.4,0.6711]
[1765785394183,0.0297,3131.8,3130.5,0.98597929]
[1765785394384,0.0277,3131.7,3131.1,13.01000503]
[1765785394692,0.0277,3131.7,3131.1,13.51600503]
[1765785394890,0.0277,3131.7,3131.1,14.00640503]
[1765785395099,0.002,3131.8,3131.1,15.41425645]
[1765785395305,0.0297,3131.2,3131.1,5.02759247]
[1765785395504,0.0297,3131.2,3131.1,8.69537104]
[1765785395988,0.0297,3131.2,3131.1,4.28024105]
[1765785396181,0.0297,3131.2,3131.1,8.69537104]
[1765785396410,0.0574,3131.2,3131.1,13.11050103]
[1765785396815,0.002,3131.2,3131.1,14.26140103]
[1765785397110,0.002,3131.8,3131.3,0.405504]
[1765785397315,0.002,3131.8,3131.7,4.99560528]
[1765785397485,0.002,3131.8,3131.7,1.08647529]
[1765785397685,0.0297,3131.8,3131.7,5.62943981]
[1765785398517,0.0297,3131.8,3131.7,8.82259368]
[1765785398692,0.0574,3131.8,3131.7,4.40746369]
[1765785398897,0.0574,3131.8,3131.7,8.31659368]
[1765785399286,0.0574,3131.8,3131.7,8.18875915]
[1765785399691,0.0574,3131.8,3131.7,3.77362916]
[1765785399897,0.0574,3131.8,3131.7,8.18875915]
[1765785400720,0.0297,3131.8,3131.7,8.18875915]
[1765785401015,0.0574,3131.8,3131.7,8.18875915]
[1765785403019,0.0297,3131.8,3131.7,8.18875915]
[1765785407522,0.0297,3131.8,3131.7,8.17914008]
[1765785409446,0.0297,3131.8,3131.7,9.32916604]
[1765785410726,0.0297,3131.8,3131.7,4.92365512]
[1765785411026,0.0297,3131.8,3131.7,9.32916604]
[1765785411729,0.0297,3131.8,3131.7,15.11038096]
[1765785411730,0.002,3131.8,3131.7,15.11038096]
[1765785411913,0.0297,3131.8,3131.7,9.73467004]
[1765785412117,0.0574,3131.8,3131.7,0.12782431]
[1765785412328,0.0574,3131.8,3131.1,4.40551092]
[1765785412638,0.0277,3131.2,3131.1,8.17975197]
[1765785412820,0.0554,3131.2,3131.1,3.19376576]
[1765785413198,0.0554,3131.2,3131.1,3.77424105]
[1765785413619,0.0554,3131.2,3131.1,3.19376576]
[1765785413893,0.002,3131.8,3131.2,0.58047529]
[1765785414099,0.01278098,3131.5,3131.2,4.98598621]
[1765785414294,0.0277,3131.3,3131.2,4.98598621]
[1765785415632,0.0277,3131.3,3131.2,8.17964998]
[1765785416531,0.01278098,3131.5,3131.2,4.26453906]
[1765785416721,0.0277,3131.4,3131.3,0.55246547]
[1765785416919,0.0277,3131.3,3131.2,3.77413906]
[1765785418441,0.002,3131.8,3131.2,3.77413906]
[1765785418734,0.01278098,3131.7,3131.4,4.40551092]
[1765785418933,0.01278098,3131.7,3131.2,6.96780283]
[1765785418934,0.01278098,3131.5,3131.2,6.96780283]
[1765785419112,0.0277,3131.3,3131.2,3.77413906]
[1765785420336,0.0554,3131.3,3131.2,3.77413906]
[1765785420541,0.0554,3131.3,3131.2,8.17964998]
[1765785420711,0.0277,3131.3,3131.2,8.17964998]
[1765785423448,0.0277,3131.3,3131.2,3.77413906]
[1765785426048,0.002,3131.8,3131.2,6.96780283]
[1765785426247,0.01278098,3131.7,3131.2,6.96780283]
[1765785426621,0.0297,3131.8,3131.5,6.38671562]
[1765785426622,0.002,3131.8,3131.5,6.38671562]
[1765785426838,0.002,3131.8,3131.7,4.40551092]
[1765785427648,0.002,3131.8,3131.7,5.91928621]
[1765785428229,0.002,3131.8,3131.7,0.58047529]
[1765785428230,0.0574,3131.8,3131.7,0.58047529]
[1765785428550,0.0574,3131.8,3131.5,3.19335781]
[1765785428732,0.0277,3131.6,3131.3,6.96759883]
[1765785428927,0.0277,3131.6,3131.3,8.16839493]
[1765785429135,0.0277,3131.6,3131.5,4.98598621]
[1765785429331,0.002,3131.8,3131.6,0.58047529]
[1765785429535,0.002,3131.8,3131.7,1.91927929]
[1765785430553,0.0297,3131.8,3131.7,0.58047529]
[1765785430863,0.0574,3131.8,3131.7,3.77362916]
[1765785431151,0.0574,3131.8,3131.5,0.58047529]
[1765785431355,0.04048098,3131.6,3131.3,3.19353154]
[1765785431553,0.01278098,3131.6,3131.4,3.19345673]
[1765785431727,0.0277,3131.5,3131.4,3.19345673]
[1765785431928,0.0554,3131.5,3131.4,3.19345673]
[1765785433022,0.0554,3131.5,3131.2,6.38730678]
[1765785433227,0.0277,3131.3,3131.2,3.7741183]
[1765785436657,0.0554,3131.3,3131.2,3.7741183]
[1765785438058,0.0277,3131.3,3131.2,3.7741183]
[1765785439536,0.0554,3131.3,3131.2,3.7741183]
[1765785439740,0.0277,3131.3,3131.2,3.7741183]
[1765785440468,0.0554,3131.3,3131.2,3.7741183]
[1765785440761,0.0554,3131.3,3131.1,3.19474401]
[1765785441059,0.01278098,3131.4,3131.1,0.001]
[1765785441060,0.06818098,3131.2,3131.1,0.001]
[1765785441247,0.06818098,3131.2,3131.1,3.19476576]
[1765785441842,0.06818098,3131.2,3131.1,0.001]
[1765785442374,0.57418098,3131.2,3131.1,0.001]
[1765785443358,0.0554,3131.2,3131.1,0.001]
[1765785443569,0.0277,3131.2,3131.1,0.001]
[1765785444067,0.0277,3131.6,3131.1,0.4666]
[1765785444254,0.002,3131.8,3131.5,4.40551092]
[1765785444580,0.01478098,3131.8,3131.4,0.58047529]
[1765785444749,0.002,3131.8,3131.5,4.40551092]
[1765785445384,0.002,3131.8,3131.5,4.87321092]
[1765785446262,0.002,3131.8,3131.6,3.19325584]
[1765785447361,0.002,3131.8,3131.6,4.3772769]
[1765785448363,0.002,3131.8,3131.7,0.4952]
[1765785448569,0.002,3131.8,3131.7,0.9538]
[1765785451382,0.002,3131.8,3131.7,4.72742916]
[1765785453693,0.0574,3131.8,3131.7,3.19315387]
[1765785453893,0.0574,3131.8,3131.6,3.1932323]
[1765785454054,0.04048098,3131.7,3131.6,3.77370759]
[1765785454260,0.06818098,3131.7,3131.2,3.19365172]
[1765785454461,0.002,3131.8,3131.2,7.59916264]
[1765785454690,0.01278098,3131.7,3131.2,11.57109267]
[1765785455195,0.04048098,3131.7,3131.2,11.57109267]
[1765785455895,0.0277,3131.3,3131.2,3.77412701]
[1765785460536,0.0297,3131.3,3131.2,3.77412701]
[1765785461165,0.002,3131.3,3131.2,4.25502701]
[1765785461564,0.002,3131.3,3131.2,3.77412701]
[1765785462993,0.0297,3131.3,3131.2,3.77412701]
[1765785463576,0.002,3131.3,3131.2,3.77412701]
[1765785464262,0.0297,3131.3,3131.2,3.77412701]
[1765785465598,0.0574,3131.3,3131.1,0.001]
[1765785465800,0.04048098,3131.2,3131.1,0.001]
[1765785466098,0.06818098,3131.2,3131.1,0.001]
[1765785467601,0.39455016,3131.2,3131.1,0.001]
[1765785468211,0.06818098,3131.2,3131.1,0.001]
[1765785475794,0.07018098,3131.2,3131.1,0.001]
[1765785481010,0.0297,3131.2,3131.1,0.001]
[1765785481517,0.002,3131.2,3131.1,0.001]
[1765785481701,0.002,3131.2,3131.1,7.60378993]
[1765785482015,0.002,3131.2,3131.1,8.07998993]
[1765785482188,0.002,3131.2,3131.1,4.88622417]
[1765785482384,0.0297,3131.2,3131.1,4.88622417]
[1765785482585,0.0297,3131.2,3131.1,3.19476576]
[1765785483807,0.0297,3131.2,3131.1,0.001]
[1765785483993,0.0574,3131.2,3131.1,0.001]
[1765785484494,0.508,3131.2,3131.1,0.001]
[1765785484698,0.508,3131.2,3131.1,4.88622417]
[1765785485192,0.002,3131.2,3131.1,9.95014834]
[1765785485519,0.002,3131.2,3131.1,10.94526317]
[1765785485720,0.002,3131.2,3131.1,11.52573846]
[1765785485896,0.002,3131.2,3131.1,14.71950422]
[1765785486301,0.462,3132.0,3131.2,0.58047529]
[1765785486499,0.4897,3132.0,3131.2,1.52827529]
[1765785486701,0.4897,3132.0,3131.4,4.40902417]
[1765785486921,0.462,3132.0,3131.2,1.52827529]
[1765785487224,0.4897,3132.0,3131.4,4.40902417]
[1765785488411,0.4897,3132.0,3131.5,3.19335781]
[1765785488721,0.462,3132.0,3131.5,3.19335781]
[1765785488891,0.4897,3132.0,3131.7,4.40902417]
[1765785489518,0.0277,3131.8,3131.7,4.40902417]
[1765785490022,0.0277,3131.8,3131.5,6.38671562]
[1765785490221,0.0277,3131.8,3131.6,4.40902417]
[1765785490574,0.0277,3131.8,3131.7,3.19315387]
[1765785491912,0.002,3132.0,3131.7,7.33410774]
[1765785492117,0.0277,3131.8,3131.7,3.19315387]
[1765785494634,0.0554,3131.8,3131.4,3.19342407]
[1765785494829,0.0277,3131.5,3131.4,3.19342407]
[1765785495031,0.0277,3131.5,3131.3,3.19352074]
[1765785495247,0.505,3131.6,3131.1,7.60378993]
[1765785495248,0.0277,3131.2,3131.1,7.60378993]
[1765785497719,0.0277,3131.2,3131.1,3.19476576]
[1765785497919,0.0554,3131.2,3131.1,3.19476576]
[1765785498530,0.0277,3131.2,3131.1,3.19476576]
[1765785499731,0.0277,3131.2,3131.1,0.001]
[1765785500912,0.5327,3131.2,3131.1,0.001]
[1765785501121,0.5604,3131.2,3131.1,0.001]
[1765785504432,0.5327,3131.2,3131.1,0.001]
[1765785504632,0.5604,3131.2,3131.1,0.001]
[1765785505729,0.5327,3131.2,3131.1,0.001]
[1765785507550,0.505,3131.2,3131.1,0.001]
[1765785509324,0.505,3131.2,3131.1,0.4733]
[1765785509516,0.505,3131.2,3131.1,0.9305]
[1765785510239,0.505,3131.2,3131.1,0.4733]
[1765785510410,0.5327,3131.2,3131.1,0.001]
[1765785512738,0.0277,3131.2,3131.1,0.001]
[1765785517354,0.505,3131.3,3131.1,0.001]
[1765785524225,0.0277,3131.2,3131.1,0.001]
[1765785524938,0.505,3131.3,3131.1,0.4849]
[1765785526160,0.505,3131.3,3131.1,4.13578929]
[1765785527843,0.505,3131.3,3131.1,4.1358104]
[1765785528259,0.505,3131.3,3131.1,0.9421]
[1765785528676,0.01278098,3131.5,3131.1,0.9421]
[1765785528861,0.505,3131.3,3131.1,0.9421]
[1765785529867,0.505,3131.3,3131.1,4.13585947]
[1765785530168,0.505,3131.3,3131.2,0.4839]
[1765785531842,0.01278098,3131.5,3131.2,0.4839]
[1765785532047,0.505,3131.4,3131.2,0.4839]
[1765785533877,0.01278098,3131.5,3131.2,0.4839]
[1765785534174,0.505,3131.4,3131.2,0.4839]
[1765785535665,0.505,3131.4,3131.1,0.4582]
[1765785536972,0.505,3131.4,3131.3,0.4839]
[1765785537370,0.5327,3131.4,3131.2,0.4572]
[1765785537871,0.51778098,3131.5,3131.3,0.4593]
[1765785538453,0.505,3131.5,3131.3,0.4593]
[1765785539346,6.326,3131.7,3131.4,0.9402]
[1765785539546,6.326,3131.7,3131.1,6.57190781]
[1765785539547,0.0277,3131.2,3131.1,3.19474205]
[1765785539867,0.0277,3131.2,3131.1,0.001]
[1765785541068,0.51778098,3131.6,3131.1,0.9412]
[1765785541271,0.51778098,3131.6,3131.1,1.1339]
[1765785541579,0.01278098,3131.6,3131.2,0.4809]
[1765785541789,6.326,3131.7,3131.5,0.4593]
[1765785542083,6.831,3131.7,3131.6,0.4593]
[1765785544545,6.831,3131.7,3131.6,0.9402]
[1765785544756,6.831,3131.7,3131.6,0.4593]
[1765785545082,6.326,3131.7,3131.6,0.4593]
[1765785545272,6.326,3131.7,3131.6,4.13345584]
[1765785545469,0.002,3131.8,3131.6,4.13345584]
[1765785545693,0.002,3131.8,3131.5,3.1933347]
[1765785545869,0.002,3131.8,3131.4,3.19342643]
[1765785546276,0.0297,3131.8,3131.4,3.19342643]
[1765785546483,0.0277,3131.5,3131.1,0.001]
[1765785546690,0.0277,3131.3,3131.1,0.001]
[1765785546978,0.505,3131.5,3131.2,3.19361403]
[1765785548446,0.505,3131.5,3131.1,3.19474454]
[1765785548649,0.505,3131.5,3131.2,0.4809]
[1765785550878,0.505,3131.5,3131.2,3.67451322]
[1765785551682,0.505,3131.5,3131.3,0.4809]
[1765785552252,0.505,3131.5,3131.2,3.19361322]
[1765785552454,0.505,3131.5,3131.2,3.67451322]
[1765785552887,0.505,3131.5,3131.4,0.4593]
[1765785553365,0.01478098,3131.8,3131.4,0.4593]
[1765785553686,0.505,3131.7,3131.5,0.4593]
[1765785555189,0.505,3131.7,3131.5,0.9402]
[1765785555688,0.01478098,3131.8,3131.5,4.13354238]
[1765785555990,0.51978098,3131.8,3131.5,4.13354238]
[1765785556889,0.51978098,3131.8,3131.5,3.65264238]
[1765785557087,0.51978098,3131.8,3131.5,0.4593]
[1765785557291,0.0277,3131.6,3131.4,3.19345632]
[1765785557884,0.51978098,3131.8,3131.4,3.19345632]
[1765785558111,0.51978098,3131.8,3131.4,3.67435632]
[1765785559098,0.54748098,3131.8,3131.2,3.19363992]
[1765785559391,0.54748098,3131.8,3131.3,0.4809]
[1765785560609,0.51978098,3131.8,3131.3,0.4809]
[1765785563696,0.51978098,3131.8,3131.4,3.19345979]
[1765785564099,0.51978098,3131.8,3131.4,3.67435979]
[1765785565370,0.51978098,3131.8,3131.2,6.38730369]
[1765785565624,0.51978098,3131.8,3131.2,7.52510917]
[1765785565904,0.51978098,3131.8,3131.3,0.4809]
[1765785567267,0.54748098,3131.8,3131.3,0.4809]
[1765785567698,0.51978098,3131.8,3131.4,3.19345979]
[1765785567901,0.51978098,3131.8,3131.4,3.65035979]
[1765785568602,0.51978098,3131.8,3131.5,0.4569]
[1765785570906,0.0277,3131.6,3131.1,0.001]
[1765785571106,0.0277,3131.2,3131.1,0.001]
[1765785571673,0.0554,3131.2,3131.1,0.001]
[1765785573013,0.0277,3131.2,3131.1,0.001]
[1765785574470,0.51778098,3131.4,3131.1,0.001]
[1765785575192,0.54548098,3131.4,3131.1,0.001]
[1765785575394,0.04048098,3131.2,3131.1,0.001]
[1765785575782,0.06818098,3131.2,3131.1,0.001]
[1765785576183,1.0275685,3131.2,3131.1,0.001]
[1765785577701,4.22123227,3131.2,3131.1,0.001]
[1765785581285,10.54723227,3131.2,3131.1,0.001]
[1765785581498,12.01059842,3131.2,3131.1,0.001]
[1765785589403,11.98289842,3131.2,3131.1,0.001]
[1765785590317,11.5285109,3131.2,3131.1,0.001]
[1765785590515,11.9821109,3131.2,3131.1,0.001]
[1765785591023,8.78844713,3131.2,3131.1,0.001]
[1765785591521,6.79238098,3131.2,3131.1,0.4588]
[1765785591820,6.84378098,3131.2,3131.1,0.9124]
[1765785595904,6.84378098,3131.2,3131.1,0.4588]
[1765785598019,6.33878098,3131.2,3131.1,0.4588]
[1765785598226,6.84378098,3131.2,3131.1,0.4588]
[1765785599021,6.33878098,3131.2,3131.1,0.4588]
[1765785599222,6.84378098,3131.2,3131.1,0.4588]
[1765785599422,10.03744475,3131.2,3131.1,0.4588]
[1765785600033,6.84378098,3131.2,3131.1,0.001]
[1765785600407,10.03744475,3131.2,3131.1,0.001]
[1765785600608,10.06514475,3131.2,3131.1,0.001]
[1765785601309,10.03744475,3131.2,3131.1,0.001]
[1765785601815,10.06514475,3131.2,3131.1,0.001]
[1765785602648,6.33878098,3131.2,3131.1,0.4907]
[1765785602935,6.33878098,3131.2,3131.1,0.9894]
[1765785602936,6.84378098,3131.2,3131.1,0.9894]
[1765785603333,6.84378098,3131.2,3131.1,1.1742]
[1765785603525,10.03744475,3131.2,3131.1,1.1742]
[1765785603835,6.33878098,3131.2,3131.1,5.58362303]
[1765785604036,0.505,3131.6,3131.1,6.14208533]
[1765785604212,0.505,3131.6,3131.5,4.89912303]
[1765785604618,0.505,3131.6,3131.5,5.39782303]
[1765785606235,0.505,3131.6,3131.5,0.9884]
[1765785606442,0.505,3131.6,3131.5,0.4897]
[1765785606737,0.5327,3131.6,3131.4,4.40942303]
[1765785607119,0.505,3131.6,3131.5,0.4897]
[1765785607846,0.505,3131.6,3131.5,0.9884]
[1765785610319,0.505,3131.6,3131.5,0.4897]
[1765785610516,0.505,3131.6,3131.5,0.9884]
[1765785611425,0.505,3131.6,3131.5,0.4897]
[1765785611625,0.505,3131.6,3131.5,0.9884]
[1765785612224,0.505,3131.6,3131.5,0.4897]
[1765785612426,0.505,3131.6,3131.5,0.9884]
[1765785612847,3.20784507,3131.8,3131.5,0.9884]
[1765785613044,0.505,3131.7,3131.5,0.4987]
[1765785613215,0.505,3131.7,3131.4,0.001]
[1765785613416,0.505,3131.7,3131.6,0.9884]
[1765785615044,3.20783714,3131.8,3131.6,0.9884]
[1765785615344,0.505,3131.7,3131.6,0.9884]
[1765785615544,0.5327,3131.7,3131.4,0.001]
[1765785615943,0.5327,3131.7,3131.4,0.4997]
[1765785617467,3.72585528,3131.7,3131.4,0.001]
[1765785617621,4.07221891,3131.7,3131.6,0.4897]
[1765785617821,4.09991891,3131.7,3131.4,0.001]
[1765785618129,0.0277,3131.5,3131.4,0.001]
[1765785619254,0.49297907,3131.5,3131.4,0.001]
[1765785619426,4.26681217,3131.5,3131.4,0.001]
[1765785619624,6.50232013,3131.5,3131.4,0.001]
[1765785619825,6.47024506,3131.5,3131.4,0.001]
[1765785620128,10.87966809,3131.5,3131.4,0.001]
[1765785620727,44.24566809,3131.5,3131.4,0.001]
[1765785622939,40.87966809,3131.5,3131.4,0.001]
[1765785626149,47.20566809,3131.5,3131.4,0.001]
[1765785626642,17.20566809,3131.5,3131.4,0.001]
[1765785626830,47.20566809,3131.5,3131.4,0.001]
[1765785628928,47.83590746,3131.5,3131.4,0.001]
[1765785629459,48.0027922,3131.5,3131.4,0.001]
[1765785631064,0.98597929,3131.3,3131.1,0.001]
[1765785631272,5.67782927,3131.2,3131.1,0.001]
[1765785631636,6.16972927,3131.2,3131.1,0.001]
[1765785631858,14.40082204,3131.2,3131.1,0.001]
[1765785632060,14.53676097,3131.2,3131.1,0.001]
[1765785632766,16.682545,3131.2,3131.1,0.001]
[1765785633075,51.09196803,3131.2,3131.1,0.001]
[1765785633762,16.682545,3131.2,3131.1,0.001]
[1765785633962,46.682545,3131.2,3131.1,0.001]
[1765785634874,31.77305497,3131.2,3131.1,0.001]
[1765785635041,31.073165,3131.2,3131.1,0.001]
[1765785635874,46.682545,3131.2,3131.1,0.001]
[1765785636841,16.682545,3131.2,3131.1,0.001]
[1765785637042,46.682545,3131.2,3131.1,0.001]
[1765785637839,16.682545,3131.2,3131.1,0.001]
[1765785638043,46.682545,3131.2,3131.1,0.001]
[1765785641180,14.46287597,3131.2,3131.1,0.001]
[1765785641341,9.99564475,3131.2,3131.1,0.6908]
[1765785641543,10.03644475,3131.2,3131.1,0.497]
[1765785641771,10.44194875,3131.2,3131.1,0.497]
[1765785642072,10.44194875,3131.2,3131.1,0.001]